fUST/lending_fUST_20250115
["ID","MTS","AMOUNT","RATE_DAILY","PERIOD"]
[349059223,1736956257957,-500.0,0.00019726,3]
[349059225,1736956257967,-500.0,0.00019726,3]
[349059226,1736956257976,-182.10023613,0.00019726,3]
[349059228,1736956257986,-500.0,0.00019726,3]
[349059229,1736956257995,-500.0,0.00019726,3]
[349059231,1736956258004,-500.0,0.00019726,3]
[349059233,1736956258015,-500.0,0.00019726,3]
[349059234,1736956258025,-500.0,0.00019726,3]
[349059236,1736956258034,-500.0,0.00019726,3]
[349059238,1736956258044,-500.0,0.00019726,3]
[349059239,1736956258054,-520.68922263,0.00019726,3]
[349059241,1736956258063,-500.0,0.00019726,3]
[349059242,1736956258073,-500.0,0.00019726,3]
[349059244,1736956258083,-500.0,0.00019726,3]
[349059246,1736956258092,-500.0,0.00019726,3]
[349059247,1736956258101,-500.0,0.00019726,3]
[349059249,1736956258114,-500.0,0.00019726,3]
[349059250,1736956258124,-500.0,0.00019726,3]
[349059252,1736956258133,-500.0,0.00019726,3]
[349059254,1736956258143,-1138.02,0.00019726,3]
[349059255,1736956258153,-506.43288251,0.00019726,3]
[349059257,1736956258163,-500.0,0.00019726,3]
[349059259,1736956258173,-500.0,0.00019726,3]
[349059260,1736956258182,-521.02,0.00019726,3]
[349059262,1736956258195,-500.0,0.00019726,3]
[349059263,1736956258204,-500.0,0.00019726,3]
[349059265,1736956258213,-500.0,0.00019726,3]
[349059267,1736956258224,-435.90909585,0.00019726,3]
[349059268,1736956258233,-649.69,0.00019726,3]
[349059270,1736956258243,-500.0,0.00019726,3]
[349059271,1736956258253,-500.0,0.00019726,3]
[349059273,1736956258263,-12115.53,0.00019726,3]
[349059275,1736956258272,-500.0,0.00019726,3]
[349059276,1736956258282,-668.11,0.00019726,3]
[349059278,1736956258291,-500.0,0.00019726,3]
[349059279,1736956258300,-500.0,0.00019726,3]
[349059281,1736956258310,-500.0,0.00019726,3]
[349059282,1736956258320,-500.0,0.00019726,3]
[349059283,1736956258329,-612.42,0.00019726,3]
[349059284,1736956258338,-500.0,0.00019726,3]
[349059285,1736956258347,-263.77997845,0.00019726,3]
[349059286,1736956258356,-500.0,0.00019726,3]
[349059287,1736956258365,-500.0,0.00019726,3]
[349059288,1736956258375,-547.84,0.00019726,3]
[349059289,1736956258385,-500.0,0.00019726,3]
[349059290,1736956258395,-500.0,0.00019726,3]
[349059291,1736956258404,-500.0,0.00019726,3]
[349059292,1736956258414,-500.0,0.00019726,3]
[349059293,1736956258423,-685.4,0.00019726,3]
[349059294,1736956258432,-500.0,0.00019726,3]
[349059295,1736956258446,-500.0,0.00019726,3]
[349059297,1736956258456,-500.0,0.00019726,3]
[349059299,1736956258465,-500.0,0.00019726,3]
[349059301,1736956258476,-500.0,0.00019726,3]
[349059303,1736956258486,-500.0,0.00019726,3]
[349059305,1736956258496,-561.76,0.00019726,3]
[349059307,1736956258506,-500.0,0.00019726,3]
[349059309,1736956258516,-2598.4,0.00019726,3]
[349059311,1736956258526,-587.54821028,0.00019726,3]
[349059313,1736956258535,-500.0,0.00019726,3]
[349059315,1736956258545,-500.0,0.00019726,3]
[349059317,1736956258555,-500.0,0.00019726,3]
[349059319,1736956258565,-500.0,0.00019726,3]
[349059321,1736956258575,-494.28038249,0.00019726,3]
[349059323,1736956258585,-500.0,0.00019726,3]
[349059325,1736956258596,-351.38178657,0.00019726,3]
[349059327,1736956258606,-2083.17,0.00019726,3]
[349059329,1736956258616,-500.0,0.00019726,3]
[349059331,1736956258626,-500.0,0.00019726,3]
[349059333,1736956258636,-500.0,0.00019726,3]
[349059335,1736956258645,-693.95,0.00019726,3]
[349059337,1736956258655,-500.0,0.00019726,3]
[349059339,1736956258665,-500.0,0.00019726,3]
[349059341,1736956258675,-500.0,0.00019726,3]
[349059343,1736956258684,-500.0,0.00019726,3]
[349059345,1736956258697,-500.0,0.00019726,3]
[349059347,1736956258706,-500.0,0.00019726,2]
[349059350,1736956258717,-500.0,0.00019726,3]
[349059352,1736956258726,-200.0,0.00019726,3]
[349059354,1736956258741,-500.0,0.00019726,3]
[349059356,1736956258751,-500.0,0.00019726,3]
[349059358,1736956258761,-500.0,0.00019726,3]
[349059360,1736956258771,-500.0,0.00019726,3]
[349059362,1736956258780,-512.06315292,0.00019726,3]
[349059364,1736956258791,-500.0,0.00019726,3]
[349059366,1736956258800,-500.0,0.00019726,3]
[349059375,1736956258885,-5134.17,0.00019726,3]
[349059377,1736956258895,-500.0,0.00019726,3]
[349059379,1736956258904,-481.70911732,0.00019726,3]
[349059381,1736956258914,-500.0,0.00019726,3]
[349059383,1736956258924,-500.0,0.00019726,3]
[349059385,1736956258934,-500.0,0.00019726,3]
[349059387,1736956258945,-500.0,0.00019726,3]
[349059389,1736956258955,-500.0,0.00019726,3]
[349059391,1736956258965,-533.54,0.00019726,3]
[349059393,1736956258975,-500.0,0.00019726,3]
[349059395,1736956258984,-500.0,0.00019726,3]
[349059397,1736956258994,-1323.96,0.00019726,3]
[349059399,1736956259004,-500.0,0.00019726,3]
[349059401,1736956259013,-500.0,0.00019726,3]
[349059403,1736956259023,-500.0,0.00019726,3]
[349059405,1736956259032,-500.0,0.00019726,3]
[349059407,1736956259042,-512.20586456,0.00019726,3]
[349059409,1736956259051,-500.0,0.00019726,3]
[349059411,1736956259061,-500.0,0.00019726,3]
[349059413,1736956259070,-1000.0,0.00019726,7]
[349059415,1736956259080,-500.0,0.00019726,3]
[349059417,1736956259090,-2560.99,0.00019726,3]
[349059419,1736956259100,-500.0,0.00019726,3]
[349059421,1736956259110,-500.0,0.00019726,3]
[349059423,1736956259119,-1266.74,0.00019726,3]
[349059425,1736956259129,-500.0,0.00019726,3]
[349059427,1736956259139,-500.0,0.00019726,3]
[349059429,1736956259148,-500.0,0.00019726,3]
[349059431,1736956259159,-500.0,0.00019726,3]
[349059433,1736956259168,-500.0,0.00019726,3]
[349059435,1736956259178,-500.0,0.00019726,3]
[349059437,1736956259188,-636.81,0.00019726,3]
[349059439,1736956259198,-500.0,0.00019726,3]
[349059441,1736956259208,-500.0,0.00019726,3]
[349059443,1736956259217,-500.0,0.00019726,3]
[349059445,1736956259228,-500.0,0.00019726,3]
[349059447,1736956259237,-500.0,0.00019726,3]
[349059449,1736956259247,-500.0,0.00019726,3]
[349059451,1736956259256,-500.0,0.00019726,3]
[349059453,1736956259266,-500.0,0.00019726,3]
[349059455,1736956259275,-500.0,0.00019726,3]
[349059457,1736956259285,-500.0,0.00019726,3]
[349059459,1736956259294,-500.0,0.00019726,3]
[349059461,1736956259304,-500.0,0.00019726,3]
[349059464,1736956259315,-500.0,0.00019726,3]
[349059465,1736956259324,-870.89,0.00019726,3]
[349059467,1736956259334,-1209.18,0.00019726,3]
[349059469,1736956259343,-500.0,0.00019726,3]
[349059471,1736956259353,-500.0,0.00019726,3]
[349059473,1736956259362,-500.0,0.00019726,3]
[349059475,1736956259372,-500.0,0.00019726,3]
[349059477,1736956259381,-2790.32488226,0.00019763,2]
[349059479,1736956259390,-169.44364145,0.00019767,2]
[349059481,1736956259400,-151.0,0.000198,2]
[349059483,1736956259409,-500.0,0.00019863,3]
[349059485,1736956259418,-500.0,0.00019863,3]
[349059487,1736956259428,-1999.0,0.00019863,30]
[349059489,1736956259438,-500.0,0.00019863,3]
[349059491,1736956259447,-500.0,0.00019863,3]
[349059493,1736956259456,-694.13,0.00019863,3]
[349059495,1736956259467,-500.0,0.00019863,3]
[349059497,1736956259476,-500.0,0.00019863,3]
[349059499,1736956259486,-500.0,0.00019863,3]
[349059501,1736956259496,-500.0,0.00019863,3]
[349059503,1736956259505,-500.0,0.00019863,3]
[349059506,1736956259515,-500.0,0.00019863,3]
[349059508,1736956259525,-527.09,0.00019863,3]
[349059509,1736956259535,-279.51169801,0.00019863,3]
[349059511,1736956259544,-500.0,0.00019863,3]
[349059514,1736956259553,-500.0,0.00019863,3]
[349059515,1736956259562,-500.0,0.00019863,3]
[349059518,1736956259572,-500.0,0.00019863,3]
[349059519,1736956259582,-500.0,0.00019863,3]
[349059521,1736956259592,-500.0,0.00019863,3]
[349059523,1736956259601,-500.0,0.00019863,3]
[349059525,1736956259610,-500.0,0.00019863,3]
[349059527,1736956259620,-500.0,0.00019863,3]
[349059529,1736956259630,-500.0,0.00019863,3]
[349059531,1736956259641,-500.0,0.00019863,3]
[349059533,1736956259651,-500.0,0.00019863,3]
[349059535,1736956259661,-500.0,0.00019863,3]
[349059538,1736956259671,-500.0,0.00019863,3]
[349059540,1736956259681,-500.0,0.00019863,3]
[349059542,1736956259692,-500.0,0.00019863,3]
[349059544,1736956259702,-500.0,0.00019863,3]
[349059545,1736956259711,-1138.02,0.00019863,3]
[349059547,1736956259721,-500.0,0.00019863,3]
[349059549,1736956259732,-521.02,0.00019863,3]
[349059551,1736956259746,-500.0,0.00019863,3]
[349059553,1736956259757,-603.11911239,0.00019863,3]
[349059556,1736956259767,-649.69,0.00019863,3]
[349059557,1736956259777,-500.0,0.00019863,3]
[349059559,1736956259789,-500.0,0.00019863,3]
[349059561,1736956259799,-12115.53,0.00019863,3]
[349059564,1736956259810,-500.0,0.00019863,3]
[349059565,1736956259820,-668.11,0.00019863,3]
[349059567,1736956259830,-500.0,0.00019863,3]
[349059569,1736956259841,-500.0,0.00019863,3]
[349059572,1736956259851,-612.42,0.00019863,3]
[349059574,1736956259861,-500.0,0.00019863,3]
[349059575,1736956259870,-547.84,0.00019863,3]
[349059577,1736956259879,-500.0,0.00019863,3]
[349059580,1736956259889,-241.35317717,0.00019863,3]
[349059581,1736956259899,-500.0,0.00019863,3]
[349059583,1736956259908,-500.0,0.00019863,3]
[349059586,1736956259919,-500.0,0.00019863,3]
[349059588,1736956259928,-685.4,0.00019863,3]
[349059589,1736956259939,-500.0,0.00019863,3]
[349059592,1736956259950,-500.0,0.00019863,3]
[349059594,1736956259960,-500.0,0.00019863,3]
[349059596,1736956259970,-500.0,0.00019863,3]
[349059598,1736956259980,-500.0,0.00019863,3]
[349059600,1736956259990,-561.76,0.00019863,3]
[349059602,1736956260000,-500.0,0.00019863,3]
[349059604,1736956260010,-2598.4,0.00019863,3]
[349059606,1736956260019,-500.0,0.00019863,3]
[349059608,1736956260029,-500.0,0.00019863,3]
[349059610,1736956260039,-500.0,0.00019863,3]
[349059612,1736956260048,-500.0,0.00019863,3]
[349059614,1736956260059,-2083.17,0.00019863,3]
[349059616,1736956260070,-693.95,0.00019863,3]
[349059618,1736956260080,-500.0,0.00019863,2]
[349059620,1736956260090,-500.0,0.00019863,3]
[349059622,1736956260100,-200.0,0.00019863,3]
[349059624,1736956260113,-500.0,0.00019863,3]
[349059626,1736956260123,-500.0,0.00019863,3]
[349059628,1736956260133,-500.0,0.00019863,3]
[349059630,1736956260143,-500.0,0.00019863,3]
[349059632,1736956260153,-5134.17,0.00019863,3]
[349059634,1736956260162,-500.0,0.00019863,3]
[349059636,1736956260172,-500.0,0.00019863,3]
[349059638,1736956260181,-500.0,0.00019863,3]
[349059640,1736956260192,-500.0,0.00019863,3]
[349059642,1736956260201,-500.0,0.00019863,3]
[349059644,1736956260211,-500.0,0.00019863,3]
[349059646,1736956260220,-533.54,0.00019863,3]
[349059648,1736956260230,-500.0,0.00019863,3]
[349059649,1736956260239,-500.0,0.00019863,3]
[349059651,1736956260249,-1323.96,0.00019863,3]
[349059653,1736956260259,-500.0,0.00019863,3]
[349059655,1736956260268,-500.0,0.00019863,3]
[349059657,1736956260278,-500.0,0.00019863,3]
[349059659,1736956260286,-504.47019473,0.00019863,3]
[349059661,1736956260296,-500.0,0.00019863,3]
[349059663,1736956260305,-500.0,0.00019863,3]
[349059665,1736956260315,-503.9859159,0.00019863,3]
[349059667,1736956260325,-2560.99,0.00019863,3]
[349059669,1736956260334,-500.0,0.00019863,3]
[349059671,1736956260344,-1266.74,0.00019863,3]
[349059673,1736956260354,-500.0,0.00019863,3]
[349059675,1736956260362,-500.0,0.00019863,3]
[349059677,1736956260372,-500.0,0.00019863,3]
[349059679,1736956260381,-500.0,0.00019863,3]
[349059681,1736956260390,-500.0,0.00019863,3]
[349059683,1736956260399,-636.81,0.00019863,3]
[349059685,1736956260409,-249.50029392,0.00019863,3]
[349059687,1736956260418,-500.0,0.00019863,3]
[349059689,1736956260427,-500.0,0.00019863,3]
[349059691,1736956260437,-500.0,0.00019863,3]
[349059693,1736956260448,-508.99430802,0.00019863,3]
[349059695,1736956260458,-150.99747973,0.00019863,3]
[349059697,1736956260467,-500.0,0.00019863,3]
[349059699,1736956260476,-500.0,0.00019863,3]
[349059701,1736956260486,-500.0,0.00019863,3]
[349059703,1736956260496,-500.0,0.00019863,3]
[349059705,1736956260504,-500.0,0.00019863,3]
[349059707,1736956260513,-870.89,0.00019863,3]
[349059709,1736956260523,-1209.18,0.00019863,3]
[349059711,1736956260533,-500.0,0.00019863,3]
[349059712,1736956260543,-500.0,0.00019863,3]
[349059714,1736956260552,-8646.96,0.000199,2]
[349059716,1736956260561,-151.0,0.000199,2]
[349059718,1736956260570,-8270.89564049,0.000199,2]
[349059720,1736956260580,-503.00728974,0.00019921,2]
[349059722,1736956260589,-1043.28570425,0.00019942,2]
[349059724,1736956260599,-500.0,0.0002,3]
[349059735,1736956260684,-500.0,0.0002,3]
[349059737,1736956260696,-500.0,0.0002,3]
[349059739,1736956260706,-500.0,0.0002,3]
[349059741,1736956260715,-694.13,0.0002,3]
[349059743,1736956260724,-500.0,0.0002,3]
[349059745,1736956260734,-500.0,0.0002,3]
[349059747,1736956260748,-500.0,0.0002,3]
[349059749,1736956260759,-500.0,0.0002,3]
[349059751,1736956260768,-500.0,0.0002,3]
[349059753,1736956260779,-1000.0,0.0002,20]
[349059755,1736956260788,-500.0,0.0002,3]
[349059757,1736956260798,-1000.0,0.0002,2]
[349059759,1736956260808,-527.09,0.0002,3]
[349059761,1736956260817,-500.0,0.0002,3]
[349059763,1736956260827,-500.0,0.0002,3]
[349059765,1736956260836,-500.0,0.0002,3]
[349059767,1736956260845,-151.0,0.0002,4]
[349059768,1736956260854,-500.0,0.0002,3]
[349059769,1736956260865,-500.0,0.0002,3]
[349059770,1736956260874,-500.0,0.0002,3]
[349059771,1736956260884,-500.0,0.0002,3]
[349059772,1736956260895,-500.0,0.0002,3]
[349059773,1736956260906,-555.39566717,0.0002,3]
[349059774,1736956260916,-500.0,0.0002,3]
[349059775,1736956260926,-500.0,0.0002,3]
[349059776,1736956260936,-500.0,0.0002,3]
[349059777,1736956260950,-500.0,0.0002,3]
[349059779,1736956260960,-500.0,0.0002,3]
[349059780,1736956260970,-500.0,0.0002,3]
[349059781,1736956260980,-500.0,0.0002,3]
[349059784,1736956260990,-1138.02,0.0002,3]
[349059785,1736956260999,-500.0,0.0002,3]
[349059787,1736956261008,-521.02,0.0002,3]
[349059790,1736956261018,-500.0,0.0002,3]
[349059792,1736956261027,-649.69,0.0002,3]
[349059794,1736956261038,-500.0,0.0002,3]
[349059795,1736956261048,-500.0,0.0002,3]
[349059797,1736956261058,-12115.53,0.0002,3]
[349059799,1736956261068,-500.0,0.0002,3]
[349059801,1736956261077,-668.11,0.0002,3]
[349059803,1736956261087,-500.0,0.0002,3]
[349059805,1736956261096,-500.0,0.0002,3]
[349059807,1736956261107,-612.42,0.0002,3]
[349059809,1736956261117,-500.0,0.0002,3]
[349059811,1736956261127,-547.84,0.0002,3]
[349059813,1736956261136,-500.0,0.0002,3]
[349059815,1736956261145,-500.0,0.0002,3]
[349059817,1736956261154,-535.08869382,0.0002,3]
[349059819,1736956261164,-500.0,0.0002,3]
[349059822,1736956261174,-685.4,0.0002,3]
[349059824,1736956261184,-500.0,0.0002,3]
[349059826,1736956261200,-500.0,0.0002,3]
[349059828,1736956261210,-500.0,0.0002,3]
[349059830,1736956261220,-500.0,0.0002,3]
[349059832,1736956261231,-561.76,0.0002,3]
[349059834,1736956261241,-500.0,0.0002,3]
[349059836,1736956261251,-2598.4,0.0002,3]
[349059838,1736956261261,-500.0,0.0002,3]
[349059840,1736956261270,-500.0,0.0002,3]
[349059842,1736956261280,-500.0,0.0002,3]
[349059844,1736956261290,-500.0,0.0002,3]
[349059846,1736956261300,-2083.17,0.0002,3]
[349059848,1736956261309,-693.95,0.0002,3]
[349059850,1736956261319,-500.0,0.0002,2]
[349059852,1736956261330,-200.0,0.0002,3]
[349059854,1736956261339,-500.0,0.0002,3]
[349059856,1736956261349,-500.0,0.0002,3]
[349059858,1736956261358,-500.0,0.0002,3]
[349059860,1736956261368,-5134.17,0.0002,3]
[349059862,1736956261379,-500.0,0.0002,3]
[349059864,1736956261388,-500.0,0.0002,3]
[349059866,1736956261398,-485.1617,0.0002,3]
[349059868,1736956261407,-500.0,0.0002,3]
[349059870,1736956261416,-500.0,0.0002,3]
[349059872,1736956261426,-533.54,0.0002,3]
[349059874,1736956261435,-500.0,0.0002,3]
[349059876,1736956261449,-500.0,0.0002,3]
[349059878,1736956261459,-1323.96,0.0002,3]
[349059880,1736956261468,-500.0,0.0002,3]
[349059882,1736956261478,-2560.99,0.0002,3]
[349059884,1736956261487,-1266.74,0.0002,3]
[349059886,1736956261497,-500.0,0.0002,3]
[349059888,1736956261507,-500.0,0.0002,3]
[349059890,1736956261517,-500.0,0.0002,3]
[349059892,1736956261526,-247.86289369,0.0002,3]
[349059894,1736956261535,-636.81,0.0002,3]
[349059896,1736956261545,-500.0,0.0002,3]
[349059898,1736956261555,-500.0,0.0002,3]
[349059900,1736956261564,-500.0,0.0002,3]
[349059902,1736956261573,-500.0,0.0002,3]
[349059904,1736956261583,-500.0,0.0002,3]
[349059906,1736956261592,-870.89,0.0002,3]
[349059908,1736956261602,-1209.18,0.0002,3]
[349059910,1736956261611,-500.0,0.0002,3]
[349059912,1736956261621,-500.0,0.00020021,2]
[349059914,1736956261630,-8270.89564049,0.00020072,2]
[349059916,1736956261639,-1000.0,0.00020121,2]
[349059918,1736956261649,-160.0,0.00020135,2]
[349059920,1736956261658,-500.0,0.00020136,3]
[349059922,1736956261668,-500.0,0.00020136,3]
[349059924,1736956261677,-500.0,0.00020136,3]
[349059926,1736956261687,-500.0,0.00020136,3]
[349059928,1736956261699,-694.13,0.00020136,3]
[349059930,1736956261708,-500.0,0.00020136,3]
[349059932,1736956261718,-500.0,0.00020136,3]
[349059934,1736956261727,-500.0,0.00020136,3]
[349059936,1736956261737,-500.0,0.00020136,3]
[349059938,1736956261750,-500.0,0.00020136,3]
[349059940,1736956261762,-500.0,0.00020136,3]
[349059942,1736956261772,-527.09,0.00020136,3]
[349059944,1736956261781,-500.0,0.00020136,3]
[349059946,1736956261791,-500.0,0.00020136,3]
[349059948,1736956261800,-500.0,0.00020136,3]
[349059950,1736956261809,-500.0,0.00020136,3]
[349059952,1736956261819,-500.0,0.00020136,3]
[349059954,1736956261829,-500.0,0.00020136,3]
[349059956,1736956261838,-500.0,0.00020136,3]
[349059958,1736956261847,-327.29921253,0.00020136,3]
[349059960,1736956261857,-500.0,0.00020136,3]
[349059962,1736956261867,-500.0,0.00020136,3]
[349059964,1736956261877,-500.0,0.00020136,3]
[349059966,1736956261887,-500.0,0.00020136,3]
[349059968,1736956261896,-500.0,0.00020136,3]
[349059970,1736956261906,-500.0,0.00020136,3]
[349059972,1736956261915,-500.0,0.00020136,3]
[349059974,1736956261924,-1138.02,0.00020136,3]
[349059976,1736956261934,-500.0,0.00020136,3]
[349059978,1736956261946,-521.02,0.00020136,3]
[349059980,1736956261957,-500.0,0.00020136,3]
[349059982,1736956261966,-649.69,0.00020136,3]
[349059984,1736956261976,-500.0,0.00020136,3]
[349059986,1736956261985,-500.0,0.00020136,3]
[349059988,1736956261993,-12115.53,0.00020136,3]
[349059990,1736956262002,-500.0,0.00020136,3]
[349059992,1736956262011,-668.11,0.00020136,3]
[349059994,1736956262021,-486.7882558,0.00020136,3]
[349059996,1736956262030,-500.0,0.00020136,3]
[349059998,1736956262039,-612.42,0.00020136,3]
[349060000,1736956262049,-500.0,0.00020136,3]
[349060002,1736956262060,-547.84,0.00020136,3]
[349060004,1736956262070,-500.0,0.00020136,3]
[349060006,1736956262079,-500.0,0.00020136,3]
[349060008,1736956262089,-500.0,0.00020136,3]
[349060010,1736956262099,-685.4,0.00020136,3]
[349060012,1736956262110,-500.0,0.00020136,3]
[349060014,1736956262121,-500.0,0.00020136,3]
[349060016,1736956262131,-500.0,0.00020136,3]
[349060018,1736956262140,-500.0,0.00020136,3]
[349060020,1736956262150,-561.76,0.00020136,3]
[349060022,1736956262160,-500.0,0.00020136,3]
[349060024,1736956262170,-2598.4,0.00020136,3]
[349060026,1736956262181,-500.0,0.00020136,3]
[349060028,1736956262192,-500.0,0.00020136,3]
[349060030,1736956262202,-500.0,0.00020136,3]
[349060032,1736956262212,-500.0,0.00020136,3]
[349060034,1736956262222,-2083.17,0.00020136,3]
[349060036,1736956262232,-693.95,0.00020136,3]
[349060038,1736956262242,-500.0,0.00020136,2]
[349060040,1736956262251,-200.0,0.00020136,3]
[349060042,1736956262261,-203.854148,0.00020136,3]
[349060044,1736956262270,-500.0,0.00020136,3]
[349060046,1736956262280,-500.0,0.00020136,3]
[349060055,1736956262359,-5134.17,0.00020136,3]
[349060057,1736956262370,-500.0,0.00020136,3]
[349060059,1736956262379,-500.0,0.00020136,3]
[349060061,1736956262389,-500.0,0.00020136,3]
[349060063,1736956262399,-533.54,0.00020136,3]
[349060065,1736956262408,-500.0,0.00020136,3]
[349060067,1736956262418,-1323.96,0.00020136,3]
[349060069,1736956262428,-500.0,0.00020136,3]
[349060071,1736956262437,-2560.99,0.00020136,3]
[349060073,1736956262450,-1266.74,0.00020136,3]
[349060076,1736956262461,-500.0,0.00020136,3]
[349060078,1736956262471,-500.0,0.00020136,3]
[349060080,1736956262480,-500.0,0.00020136,3]
[349060082,1736956262490,-636.81,0.00020136,3]
[349060084,1736956262500,-500.0,0.00020136,3]
[349060086,1736956262509,-500.0,0.00020136,3]
[349060088,1736956262518,-500.0,0.00020136,3]
[349060090,1736956262527,-500.0,0.00020136,3]
[349060092,1736956262537,-500.0,0.00020136,3]
[349060094,1736956262545,-870.89,0.00020136,3]
[349060096,1736956262554,-1209.18,0.00020136,3]
[349060097,1736956262563,-500.0,0.00020136,3]
[349060100,1736956262573,-151.0,0.000202,3]
[349060102,1736956262583,-2790.32488224,0.00020224,2]
[349060104,1736956262592,-8270.89564049,0.00020245,2]
[349060106,1736956262602,-160.0,0.00020272,2]
[349060108,1736956262611,-500.0,0.00020273,3]
[349060109,1736956262620,-500.0,0.00020273,3]
[349060112,1736956262630,-500.0,0.00020273,3]
[349060114,1736956262640,-500.0,0.00020273,3]
[349060116,1736956262649,-694.13,0.00020273,3]
[349060118,1736956262659,-500.0,0.00020273,3]
[349060120,1736956262669,-500.0,0.00020273,3]
[349060122,1736956262678,-500.0,0.00020273,3]
[349060124,1736956262691,-500.0,0.00020273,3]
[349060126,1736956262701,-500.0,0.00020273,3]
[349060128,1736956262711,-527.09,0.00020273,3]
[349060130,1736956262722,-500.0,0.00020273,3]
[349060132,1736956262733,-500.0,0.00020273,3]
[349060134,1736956262745,-500.0,0.00020273,3]
[349060136,1736956262755,-500.0,0.00020273,3]
[349060138,1736956262767,-500.0,0.00020273,3]
[349060140,1736956262777,-645.20789847,0.00020273,3]
[349060142,1736956262787,-500.0,0.00020273,3]
[349060144,1736956262797,-500.0,0.00020273,3]
[349060146,1736956262807,-500.0,0.00020273,3]
[349060148,1736956262818,-500.0,0.00020273,3]
[349060150,1736956262829,-500.0,0.00020273,3]
[349060152,1736956262839,-500.0,0.00020273,3]
[349060154,1736956262848,-500.0,0.00020273,3]
[349060156,1736956262858,-500.0,0.00020273,3]
[349060158,1736956262868,-1138.02,0.00020273,3]
[349060160,1736956262877,-500.0,0.00020273,3]
[349060162,1736956262887,-521.02,0.00020273,3]
[349060164,1736956262897,-500.0,0.00020273,3]
[349060166,1736956262906,-649.69,0.00020273,3]
[349060168,1736956262915,-500.0,0.00020273,3]
[349060170,1736956262925,-500.0,0.00020273,3]
[349060172,1736956262934,-12115.53,0.00020273,3]
[349060174,1736956262947,-500.0,0.00020273,3]
[349060177,1736956262956,-668.11,0.00020273,3]
[349060178,1736956262966,-500.0,0.00020273,3]
[349060181,1736956262976,-612.42,0.00020273,3]
[349060183,1736956262985,-500.0,0.00020273,3]
[349060185,1736956262995,-547.84,0.00020273,3]
[349060187,1736956263004,-255.02695414,0.00020273,3]
[349060188,1736956263013,-500.0,0.00020273,3]
[349060190,1736956263022,-184.97524011,0.00020273,3]
[349060193,1736956263032,-685.4,0.00020273,3]
[349060195,1736956263042,-500.0,0.00020273,3]
[349060197,1736956263052,-500.0,0.00020273,3]
[349060199,1736956263063,-500.0,0.00020273,3]
[349060201,1736956263074,-500.0,0.00020273,3]
[349060203,1736956263084,-561.76,0.00020273,3]
[349060205,1736956263094,-500.0,0.00020273,3]
[349060207,1736956263104,-2598.4,0.00020273,3]